[Event "Live Chess"]
[Site "Chess.com"]
[Date "2023.05.21"]
[Round "-"]
[White "peter-785"]
[Black "tuppyglossop"]
[Result "0-1"]
[WhiteElo "1209"]
[BlackElo "1641"]
[TimeControl "300"]
[EndTime "0:29:41 PDT"]
[Termination "tuppyglossop won on time"]

1. e4 {[%clk 0:04:58.1]} 1... c5 {[%clk 0:04:58]} 2. Nf3 {[%clk 0:04:57.6]} 2...
d6 {[%clk 0:04:57.1]} 3. Bc4 {[%clk 0:04:57.1]} 3... e6 {[%clk 0:04:55.5]} 4.
O-O {[%clk 0:04:55.7]} 4... Nf6 {[%clk 0:04:54.5]} 5. Nc3 {[%clk 0:04:50.5]}
5... a6 {[%clk 0:04:53.2]} 6. d4 {[%clk 0:04:49.3]} 6... cxd4 {[%clk 0:04:51.7]}
7. Nxd4 {[%clk 0:04:47.8]} 7... Nc6 {[%clk 0:04:50.7]} 8. Nxc6 {[%clk
0:04:27.1]} 8... bxc6 {[%clk 0:04:50.6]} 9. e5 {[%clk 0:04:25.5]} 9... Nd5
{[%clk 0:04:47.7]} 10. exd6 {[%clk 0:04:18.1]} 10... Bxd6 {[%clk 0:04:41.1]} 11.
Ne4 {[%clk 0:04:04.5]} 11... Bc7 {[%clk 0:04:37.1]} 12. Qf3 {[%clk 0:03:50.1]}
12... O-O {[%clk 0:04:34.7]} 13. Rd1 {[%clk 0:03:39.2]} 13... Qe7 {[%clk
0:04:32.7]} 14. Bg5 {[%clk 0:03:27.2]} 14... f6 {[%clk 0:04:31.5]} 15. Bh4
{[%clk 0:03:25.8]} 15... Be5 {[%clk 0:04:16.2]} 16. c3 {[%clk 0:03:17.9]} 16...
Rb8 {[%clk 0:04:14.3]} 17. Rab1 {[%clk 0:03:10]} 17... Kh8 {[%clk 0:04:01.8]}
18. Ng3 {[%clk 0:02:54.9]} 18... Nf4 {[%clk 0:03:42.1]} 19. Ne2 {[%clk
0:02:37.2]} 19... Ng6 {[%clk 0:03:23.5]} 20. Bg3 {[%clk 0:02:32.3]} 20... Bxg3
{[%clk 0:03:22]} 21. Qxg3 {[%clk 0:02:30.5]} 21... e5 {[%clk 0:03:21]} 22. Qf3
{[%clk 0:02:05.6]} 22... Bb7 {[%clk 0:03:17.3]} 23. Bb3 {[%clk 0:01:53.8]} 23...
c5 {[%clk 0:03:05.1]} 24. Bd5 {[%clk 0:01:42.7]} 24... Bxd5 {[%clk 0:02:37.5]}
25. Rxd5 {[%clk 0:01:26.7]} 25... Rfd8 {[%clk 0:02:35.5]} 26. Rxd8+ {[%clk
0:01:07.7]} 26... Qxd8 {[%clk 0:02:35.4]} 27. h3 {[%clk 0:01:00.2]} 27... Nf8
{[%clk 0:02:22.8]} 28. Ng3 {[%clk 0:00:58.1]} 28... Ne6 {[%clk 0:02:19.8]} 29.
Qg4 {[%clk 0:00:51.9]} 29... Qe7 {[%clk 0:02:03.1]} 30. Nf5 {[%clk 0:00:48.6]}
30... Qf7 {[%clk 0:02:00.9]} 31. b3 {[%clk 0:00:43.7]} 31... Rd8 {[%clk
0:01:51.7]} 32. c4 {[%clk 0:00:42.3]} 32... g6 {[%clk 0:01:44.6]} 33. Ne3 {[%clk
0:00:37.3]} 33... Nd4 {[%clk 0:01:38.5]} 34. Nd5 {[%clk 0:00:35.3]} 34... h5
{[%clk 0:01:15.9]} 35. Qh4 {[%clk 0:00:33.7]} 35... g5 {[%clk 0:01:11.6]} 36.
Qe4 {[%clk 0:00:31.8]} 36... h4 {[%clk 0:01:04]} 37. Rc1 {[%clk 0:00:16.7]}
37... a5 {[%clk 0:00:57.4]} 38. Ra1 {[%clk 0:00:14.2]} 38... Rb8 {[%clk
0:00:51]} 39. Rb1 {[%clk 0:00:11.9]} 39... Kg7 {[%clk 0:00:42.4]} 40. Kf1 {[%clk
0:00:01]} 40... Qb7 {[%clk 0:00:28.8]} 0-1

[Event "Live Chess"]
[Site "Chess.com"]
[Date "2023.05.21"]
[Round "-"]
[White "toxic_rabbit"]
[Black "LiamClery2020"]
[Result "1/2-1/2"]
[WhiteElo "1984"]
[BlackElo "2031"]
[TimeControl "300"]
[EndTime "0:29:51 PDT"]
[Termination "Game drawn by repetition"]

1. e4 {[%clk 0:04:56.2]} 1... Nf6 {[%clk 0:04:58.6]} 2. e5 {[%clk 0:04:54.6]}
2... Nd5 {[%clk 0:04:58]} 3. c4 {[%clk 0:04:51.6]} 3... Nb6 {[%clk 0:04:56.6]}
4. d4 {[%clk 0:04:48.7]} 4... d6 {[%clk 0:04:54.6]} 5. exd6 {[%clk 0:04:48.1]}
5... cxd6 {[%clk 0:04:54.5]} 6. Nf3 {[%clk 0:04:47.1]} 6... g6 {[%clk
0:04:53.8]} 7. Nc3 {[%clk 0:04:46.3]} 7... Bg7 {[%clk 0:04:53.3]} 8. Be2 {[%clk
0:04:45]} 8... O-O {[%clk 0:04:52.8]} 9. h3 {[%clk 0:04:43.2]} 9... Nc6 {[%clk
0:04:52.2]} 10. O-O {[%clk 0:04:39.8]} 10... e5 {[%clk 0:04:51.5]} 11. Be3
{[%clk 0:04:36]} 11... Re8 {[%clk 0:04:47.8]} 12. d5 {[%clk 0:04:27.9]} 12...
Ne7 {[%clk 0:04:45.9]} 13. Re1 {[%clk 0:04:23.9]} 13... Nf5 {[%clk 0:04:42.9]}
14. g4 {[%clk 0:04:18.1]} 14... Nxe3 {[%clk 0:04:40.6]} 15. fxe3 {[%clk
0:04:18]} 15... h5 {[%clk 0:04:36.9]} 16. gxh5 {[%clk 0:04:10.8]} 16... Bxh3
{[%clk 0:04:34.4]} 17. hxg6 {[%clk 0:04:09]} 17... fxg6 {[%clk 0:04:33]} 18. Kh2
{[%clk 0:04:06.9]} 18... Bf5 {[%clk 0:04:30.4]} 19. Rg1 {[%clk 0:04:04.7]} 19...
e4 {[%clk 0:04:27.3]} 20. Ng5 {[%clk 0:03:55.2]} 20... Be5+ {[%clk 0:04:24.7]}
21. Kh1 {[%clk 0:03:48.2]} 21... Re7 {[%clk 0:04:17.6]} 22. Ncxe4 {[%clk
0:03:46]} 22... Rh7+ {[%clk 0:04:08.7]} 23. Nxh7 {[%clk 0:03:42.7]} 23... Bxe4+
{[%clk 0:04:07.5]} 24. Bf3 {[%clk 0:03:40]} 24... Qh4+ {[%clk 0:04:06.3]} 25.
Kg2 {[%clk 0:03:38.7]} 25... Qh2+ {[%clk 0:04:03.1]} 26. Kf1 {[%clk 0:03:37.9]}
26... Qh3+ {[%clk 0:03:59.5]} 27. Bg2 {[%clk 0:03:34.2]} 27... Qf5+ {[%clk
0:03:57.8]} 28. Ke2 {[%clk 0:03:27.5]} 28... Qg4+ {[%clk 0:03:49.3]} 29. Kf1
{[%clk 0:03:26.5]} 29... Qf5+ {[%clk 0:03:44]} 30. Ke2 {[%clk 0:03:24.7]} 30...
Qh5+ {[%clk 0:03:38.2]} 31. Kf1 {[%clk 0:03:16.4]} 31... Qf5+ {[%clk 0:03:24.2]}
1/2-1/2

[Event "Live Chess"]
[Site "Chess.com"]
[Date "2023.05.21"]
[Round "-"]
[White "BostonStrangler"]
[Black "Biranidun"]
[Result "0-1"]
[WhiteElo "2056"]
[BlackElo "2538"]
[TimeControl "300"]
[EndTime "0:30:02 PDT"]
[Termination "Biranidun won by resignation"]

1. f3 {[%clk 0:04:58.1]} 1... e5 {[%clk 0:04:58.6]} 2. e4 {[%clk 0:04:56.2]}
2... Nf6 {[%clk 0:04:56.9]} 3. d4 {[%clk 0:04:54.6]} 3... exd4 {[%clk
0:04:54.5]} 4. Qxd4 {[%clk 0:04:54]} 4... Nc6 {[%clk 0:04:53.6]} 5. Qe3 {[%clk
0:04:52.9]} 5... Bb4+ {[%clk 0:04:49.7]} 6. c3 {[%clk 0:04:51.6]} 6... Ba5
{[%clk 0:04:49.3]} 7. Bc4 {[%clk 0:04:50.1]} 7... O-O {[%clk 0:04:48]} 8. Ne2
{[%clk 0:04:48.4]} 8... d5 {[%clk 0:04:47.6]} 9. exd5 {[%clk 0:04:44]} 9... Nxd5
{[%clk 0:04:47.5]} 10. Qg5 {[%clk 0:04:39.8]} 10... Qxg5 {[%clk 0:04:35.7]} 11.
Bxg5 {[%clk 0:04:37.8]} 11... Be6 {[%clk 0:04:35.5]} 12. Nd2 {[%clk 0:04:35.4]}
12... h6 {[%clk 0:04:30.5]} 13. Bh4 {[%clk 0:04:34.1]} 13... Ne3 {[%clk
0:04:25.1]} 14. Kf2 {[%clk 0:04:18]} 14... Nxc4 {[%clk 0:04:24.1]} 0-1

[Event "Live Chess"]
[Site "Chess.com"]
[Date "2023.05.21"]
[Round "-"]
[White "Jeffaroow"]
[Black "MarkLim1"]
[Result "0-1"]
[WhiteElo "518"]
[BlackElo "1683"]
[TimeControl "300"]
[EndTime "0:30:16 PDT"]
[Termination "MarkLim1 won by checkmate"]

1. e4 {[%clk 0:04:50.3]} 1... e6 {[%clk 0:04:58.8]} 2. d4 {[%clk 0:04:47.7]}
2... d5 {[%clk 0:04:57.9]} 3. Nc3 {[%clk 0:04:46.3]} 3... Nf6 {[%clk 0:04:56.7]}
4. Bd3 {[%clk 0:04:42.9]} 4... c5 {[%clk 0:04:53.6]} 5. Nf3 {[%clk 0:04:38.7]}
5... Nc6 {[%clk 0:04:50.5]} 6. Be3 {[%clk 0:04:35.7]} 6... cxd4 {[%clk
0:04:40.9]} 7. Nxd4 {[%clk 0:04:34]} 7... dxe4 {[%clk 0:04:36.8]} 8. Nxe4 {[%clk
0:04:30.9]} 8... Nxd4 {[%clk 0:04:35.4]} 9. Bxd4 {[%clk 0:04:28.5]} 9... Be7
{[%clk 0:04:28.7]} 10. Bxf6 {[%clk 0:04:24.7]} 10... Bxf6 {[%clk 0:04:26.4]} 11.
Nxf6+ {[%clk 0:04:15.8]} 11... Qxf6 {[%clk 0:04:25.1]} 12. Kf1 {[%clk
0:04:12.9]} 12... O-O {[%clk 0:04:23.5]} 13. Qf3 {[%clk 0:03:52.8]} 13... Qxf3
{[%clk 0:04:21.5]} 14. gxf3 {[%clk 0:03:52.7]} 14... Bd7 {[%clk 0:04:20.7]} 15.
Rd1 {[%clk 0:03:50.7]} 15... Bc6 {[%clk 0:04:19.7]} 16. Be4 {[%clk 0:03:47.4]}
16... Rac8 {[%clk 0:04:18.5]} 17. Bxc6 {[%clk 0:03:43.8]} 17... Rxc6 {[%clk
0:04:17.5]} 18. c3 {[%clk 0:03:42.8]} 18... Rb6 {[%clk 0:04:15.9]} 19. b3 {[%clk
0:03:35.9]} 19... Ra6 {[%clk 0:04:14.3]} 20. a4 {[%clk 0:03:34.3]} 20... Rc6
{[%clk 0:04:13.3]} 21. c4 {[%clk 0:03:32.6]} 21... Rb6 {[%clk 0:04:12.5]} 22.
Rb1 {[%clk 0:03:31.6]} 22... Rd8 {[%clk 0:04:10.2]} 23. Kg2 {[%clk 0:03:27.2]}
23... Rd3 {[%clk 0:04:07.5]} 24. Rhd1 {[%clk 0:03:21.7]} 24... Rxd1 {[%clk
0:04:02.7]} 25. Rxd1 {[%clk 0:03:20.4]} 25... Kf8 {[%clk 0:04:02.1]} 26. Rd8+
{[%clk 0:03:18]} 26... Ke7 {[%clk 0:04:01.2]} 27. Ra8 {[%clk 0:03:16.8]} 27...
a6 {[%clk 0:03:57.3]} 28. Rh8 {[%clk 0:03:10.7]} 28... h6 {[%clk 0:03:51]} 29.
c5 {[%clk 0:02:51.1]} 29... Rxb3 {[%clk 0:03:49.5]} 30. Rc8 {[%clk 0:02:45]}
30... Rb4 {[%clk 0:03:39.8]} 31. a5 {[%clk 0:02:43.3]} 31... Kf6 {[%clk
0:03:34.9]} 32. c6 {[%clk 0:02:37.7]} 32... bxc6 {[%clk 0:03:29.1]} 33. Rxc6
{[%clk 0:02:36.5]} 33... Ra4 {[%clk 0:03:24.2]} 34. Rxa6 {[%clk 0:02:35]} 34...
g5 {[%clk 0:03:19.2]} 35. Ra8 {[%clk 0:02:33]} 35... Ke5 {[%clk 0:03:16.5]} 36.
a6 {[%clk 0:02:31.8]} 36... f5 {[%clk 0:03:14.2]} 37. a7 {[%clk 0:02:30.5]}
37... h5 {[%clk 0:03:12.5]} 38. h3 {[%clk 0:02:25]} 38... g4 {[%clk 0:03:02.2]}
39. fxg4 {[%clk 0:02:23]} 39... hxg4 {[%clk 0:03:00.9]} 40. hxg4 {[%clk
0:02:18]} 40... Rxg4+ {[%clk 0:02:56.4]} 41. Kf3 {[%clk 0:02:16.2]} 41... Ra4
{[%clk 0:02:54.1]} 42. Ke3 {[%clk 0:02:12.8]} 42... Ra3+ {[%clk 0:02:52.7]} 43.
Ke2 {[%clk 0:02:11.4]} 43... Kf4 {[%clk 0:02:51.3]} 44. f3 {[%clk 0:02:07.8]}
44... e5 {[%clk 0:02:49.5]} 45. Kf2 {[%clk 0:02:05.5]} 45... Ra2+ {[%clk
0:02:48.2]} 46. Kf1 {[%clk 0:02:03.1]} 46... Kxf3 {[%clk 0:02:47.3]} 47. Ke1
{[%clk 0:02:01.6]} 47... e4 {[%clk 0:02:43.7]} 48. Kd1 {[%clk 0:01:51.2]} 48...
f4 {[%clk 0:02:40.4]} 49. Ke1 {[%clk 0:01:48.1]} 49... e3 {[%clk 0:02:36.5]} 50.
Kf1 {[%clk 0:01:46]} 50... Ra1# {[%clk 0:02:35.5]} 0-1

[Event "Live Chess"]
[Site "Chess.com"]
[Date "2023.05.21"]
[Round "-"]
[White "Tiltador"]
[Black "raminguy"]
[Result "0-1"]
[WhiteElo "761"]
[BlackElo "1935"]
[TimeControl "300"]
[EndTime "0:30:41 PDT"]
[Termination "raminguy won by checkmate"]

1. d4 {[%clk 0:04:57.1]} 1... d5 {[%clk 0:04:58.7]} 2. e3 {[%clk 0:04:55.9]}
2... Nf6 {[%clk 0:04:53.7]} 3. c3 {[%clk 0:04:54.7]} 3... c5 {[%clk 0:04:52.6]}
4. Bb5+ {[%clk 0:04:52.2]} 4... Bd7 {[%clk 0:04:50.1]} 5. Bxd7+ {[%clk 0:04:51]}
5... Nbxd7 {[%clk 0:04:48.7]} 6. dxc5 {[%clk 0:04:49.1]} 6... Nxc5 {[%clk
0:04:47.1]} 7. Nf3 {[%clk 0:04:47.8]} 7... e6 {[%clk 0:04:43.4]} 8. O-O {[%clk
0:04:46.3]} 8... Be7 {[%clk 0:04:41.8]} 9. b4 {[%clk 0:04:42.6]} 9... Ncd7
{[%clk 0:04:39.6]} 10. Nbd2 {[%clk 0:04:36.3]} 10... O-O {[%clk 0:04:37.9]} 11.
Nb3 {[%clk 0:04:35.1]} 11... h6 {[%clk 0:04:33.1]} 12. Bb2 {[%clk 0:04:33.6]}
12... Rc8 {[%clk 0:04:31.2]} 13. Nbd4 {[%clk 0:04:29.4]} 13... e5 {[%clk
0:04:22.7]} 14. Nf5 {[%clk 0:04:25.7]} 14... Re8 {[%clk 0:04:13.1]} 15. Nxe7+
{[%clk 0:04:24.3]} 15... Qxe7 {[%clk 0:04:10.9]} 16. a3 {[%clk 0:04:21.4]} 16...
Red8 {[%clk 0:04:01.1]} 17. Qe2 {[%clk 0:04:14.9]} 17... Ne4 {[%clk 0:03:55.2]}
18. Nd2 {[%clk 0:04:05.2]} 18... Nxc3 {[%clk 0:03:50.1]} 19. Bxc3 {[%clk
0:04:03.1]} 19... Rxc3 {[%clk 0:03:48.1]} 20. Nf3 {[%clk 0:03:57.5]} 20... Nf6
{[%clk 0:03:37.5]} 21. Rfc1 {[%clk 0:03:40.8]} 21... Rdc8 {[%clk 0:03:32.9]} 22.
h3 {[%clk 0:03:30.1]} 22... g6 {[%clk 0:03:29]} 23. Kh2 {[%clk 0:03:25]} 23...
Kg7 {[%clk 0:03:23.4]} 24. Rxc3 {[%clk 0:03:18.7]} 24... Rxc3 {[%clk 0:03:20.6]}
25. b5 {[%clk 0:03:04.3]} 25... Qc7 {[%clk 0:03:18.1]} 26. a4 {[%clk 0:02:59.6]}
26... e4+ {[%clk 0:03:16.3]} 27. g3 {[%clk 0:02:46.1]} 27... exf3 {[%clk
0:03:14.4]} 28. Qxf3 {[%clk 0:02:43.4]} 28... d4 {[%clk 0:03:13.3]} 29. Qf4
{[%clk 0:02:32.2]} 29... dxe3 {[%clk 0:03:09]} 30. Qxc7 {[%clk 0:02:28]} 30...
Rxc7 {[%clk 0:03:08.9]} 31. fxe3 {[%clk 0:02:26.8]} 31... Rc2+ {[%clk
0:03:04.1]} 32. Kh1 {[%clk 0:02:21.8]} 32... Ne4 {[%clk 0:03:02.9]} 33. g4
{[%clk 0:02:15.6]} 33... Re2 {[%clk 0:02:59.3]} 34. Ra3 {[%clk 0:02:12]} 34...
Nf2+ {[%clk 0:02:50.2]} 35. Kg2 {[%clk 0:02:09.2]} 35... Nd1+ {[%clk 0:02:39.7]}
36. Kg3 {[%clk 0:02:07.1]} 36... Rxe3+ {[%clk 0:02:37.9]} 37. Rxe3 {[%clk
0:02:04.2]} 37... Nxe3 {[%clk 0:02:37.8]} 38. h4 {[%clk 0:01:56.2]} 38... Nd5
{[%clk 0:02:36.9]} 39. g5 {[%clk 0:01:51.7]} 39... Nc3 {[%clk 0:02:34.9]} 40.
gxh6+ {[%clk 0:01:42.9]} 40... Kxh6 {[%clk 0:02:34.8]} 41. a5 {[%clk 0:01:35.2]}
41... Nxb5 {[%clk 0:02:32.8]} 42. Kg4 {[%clk 0:01:31.9]} 42... b6 {[%clk
0:02:29.2]} 43. axb6 {[%clk 0:01:27.9]} 43... axb6 {[%clk 0:02:29.1]} 44. Kf3
{[%clk 0:01:25.4]} 44... Nd6 {[%clk 0:02:27.2]} 45. Ke3 {[%clk 0:01:24.2]} 45...
f5 {[%clk 0:02:26.2]} 46. Kf4 {[%clk 0:01:21.4]} 46... b5 {[%clk 0:02:25.2]} 47.
Ke5 {[%clk 0:01:19.1]} 47... Kh5 {[%clk 0:02:22.8]} 48. Kxd6 {[%clk 0:01:17.6]}
48... b4 {[%clk 0:02:20.1]} 49. Kc5 {[%clk 0:01:16.5]} 49... b3 {[%clk
0:02:19.3]} 50. Kc4 {[%clk 0:01:15.6]} 50... b2 {[%clk 0:02:18]} 51. Kd5 {[%clk
0:01:13.3]} 51... b1=R {[%clk 0:02:15.8]} 52. Ke6 {[%clk 0:01:11.8]} 52... Re1+
{[%clk 0:02:14.6]} 53. Kf6 {[%clk 0:01:10.8]} 53... f4 {[%clk 0:02:12.9]} 54.
Kg7 {[%clk 0:01:03.4]} 54... f3 {[%clk 0:02:11.1]} 55. Kf6 {[%clk 0:01:02.2]}
55... f2 {[%clk 0:02:10.3]} 56. Kg7 {[%clk 0:01:00.9]} 56... f1=Q {[%clk
0:02:09.3]} 57. Kg8 {[%clk 0:00:58.5]} 57... Re8+ {[%clk 0:02:08.2]} 58. Kg7
{[%clk 0:00:56.8]} 58... Qf8+ {[%clk 0:02:07]} 59. Kh7 {[%clk 0:00:53.5]} 59...
Qh8# {[%clk 0:02:05.8]} 0-1

[Event "Live Chess"]
[Site "Chess.com"]
[Date "2023.05.21"]
[Round "-"]
[White "JohanKjeldahl"]
[Black "smoggyrabbit"]
[Result "1-0"]
[WhiteElo "1889"]
[BlackElo "1726"]
[TimeControl "300"]
[EndTime "0:30:43 PDT"]
[Termination "JohanKjeldahl won on time"]

1. c4 {[%clk 0:04:56.5]} 1... e6 {[%clk 0:04:58.4]} 2. Nc3 {[%clk 0:04:54.8]}
2... f5 {[%clk 0:04:57.1]} 3. d4 {[%clk 0:04:53.4]} 3... Nf6 {[%clk 0:04:55.5]}
4. g3 {[%clk 0:04:52.2]} 4... Bb4 {[%clk 0:04:52.5]} 5. Bd2 {[%clk 0:04:48.4]}
5... O-O {[%clk 0:04:47.6]} 6. Bg2 {[%clk 0:04:47.4]} 6... d5 {[%clk 0:04:34.3]}
7. b3 {[%clk 0:04:37.4]} 7... c6 {[%clk 0:04:22.5]} 8. e3 {[%clk 0:04:35.9]}
8... Bxc3 {[%clk 0:04:16.7]} 9. Bxc3 {[%clk 0:04:33.3]} 9... Nbd7 {[%clk
0:04:12.5]} 10. Ne2 {[%clk 0:04:31.3]} 10... Ne4 {[%clk 0:04:10.8]} 11. O-O
{[%clk 0:04:28.9]} 11... Ndf6 {[%clk 0:04:08.6]} 12. f3 {[%clk 0:04:26.4]} 12...
Nxc3 {[%clk 0:04:04.4]} 13. Nxc3 {[%clk 0:04:26]} 13... Qe8 {[%clk 0:04:00.5]}
14. Qc2 {[%clk 0:04:22.7]} 14... e5 {[%clk 0:03:53.4]} 15. Rfe1 {[%clk
0:04:07.3]} 15... e4 {[%clk 0:03:48.7]} 16. cxd5 {[%clk 0:04:03.6]} 16... cxd5
{[%clk 0:03:46.5]} 17. a4 {[%clk 0:03:57.8]} 17... Bd7 {[%clk 0:03:42.1]} 18.
Rac1 {[%clk 0:03:52.5]} 18... Rc8 {[%clk 0:03:32.6]} 19. Qd2 {[%clk 0:03:48.2]}
19... a6 {[%clk 0:02:36.5]} 20. fxe4 {[%clk 0:03:41.7]} 20... fxe4 {[%clk
0:02:32.5]} 21. Rf1 {[%clk 0:03:39.7]} 21... b5 {[%clk 0:02:28.4]} 22. axb5
{[%clk 0:03:37.2]} 22... axb5 {[%clk 0:02:27.1]} 23. Ra1 {[%clk 0:03:27.8]}
23... b4 {[%clk 0:02:23.3]} 24. Ne2 {[%clk 0:03:21.4]} 24... Bb5 {[%clk
0:02:10.7]} 25. Rfc1 {[%clk 0:03:16.9]} 25... Qe7 {[%clk 0:01:58.9]} 26. Nf4
{[%clk 0:03:12.4]} 26... g5 {[%clk 0:00:51.9]} 27. Ne2 {[%clk 0:03:08.3]} 27...
Bd3 {[%clk 0:00:46.2]} 28. Ra5 {[%clk 0:02:58.9]} 28... Rxc1+ {[%clk 0:00:27.2]}
29. Nxc1 {[%clk 0:02:57.1]} 29... Ng4 {[%clk 0:00:18.5]} 30. Nxd3 {[%clk
0:02:52.9]} 30... exd3 {[%clk 0:00:17.3]} 31. Bxd5+ {[%clk 0:02:50.3]} 31... Kh8
{[%clk 0:00:15.6]} 32. Qxd3 {[%clk 0:02:32.8]} 32... Nxe3 {[%clk 0:00:14.5]} 33.
Bg2 {[%clk 0:02:13.4]} 33... Nxg2 {[%clk 0:00:11.8]} 34. Kxg2 {[%clk 0:02:12.1]}
34... Qe1 {[%clk 0:00:09.5]} 35. Re5 {[%clk 0:01:58.1]} 35... Rf2+ {[%clk
0:00:06.7]} 36. Kh3 {[%clk 0:01:56.2]} 36... Qg1 {[%clk 0:00:03.4]} 37. Rxg5
{[%clk 0:01:46.5]} 37... Qxh2+ {[%clk 0:00:01.9]} 38. Kg4 {[%clk 0:01:44.5]}
38... Rg2 {[%clk 0:00:01.2]} 39. Qf3 {[%clk 0:01:39.8]} 1-0

[Event "Live Chess"]
[Site "Chess.com"]
[Date "2023.05.21"]
[Round "-"]
[White "BillythekidFellowes"]
[Black "rmethornhill"]
[Result "0-1"]
[WhiteElo "2022"]
[BlackElo "1172"]
[TimeControl "300"]
[EndTime "0:30:47 PDT"]
[Termination "rmethornhill won by checkmate"]

1. e4 {[%clk 0:04:59.5]} 1... d5 {[%clk 0:04:56.9]} 2. Nf3 {[%clk 0:04:59.4]}
2... dxe4 {[%clk 0:04:55.7]} 3. Ng5 {[%clk 0:04:58.8]} 3... e5 {[%clk
0:04:53.4]} 4. Nxe4 {[%clk 0:04:57.2]} 4... Nc6 {[%clk 0:04:51.9]} 5. Nbc3
{[%clk 0:04:56.2]} 5... Nf6 {[%clk 0:04:50.7]} 6. d3 {[%clk 0:04:54.7]} 6... Bb4
{[%clk 0:04:46.6]} 7. Bg5 {[%clk 0:04:53.2]} 7... Be7 {[%clk 0:04:35.6]} 8.
Nxf6+ {[%clk 0:04:43.6]} 8... Bxf6 {[%clk 0:04:33]} 9. Bxf6 {[%clk 0:04:42.6]}
9... Qxf6 {[%clk 0:04:31.8]} 10. Be2 {[%clk 0:04:41.5]} 10... O-O {[%clk
0:04:29.6]} 11. Bg4 {[%clk 0:04:28.4]} 11... Be6 {[%clk 0:04:13.1]} 12. Bxe6
{[%clk 0:04:27]} 12... fxe6 {[%clk 0:04:12]} 13. O-O {[%clk 0:04:25.8]} 13...
Nd4 {[%clk 0:04:10]} 14. Ne4 {[%clk 0:04:07.8]} 14... Qg6 {[%clk 0:04:06.8]} 15.
c3 {[%clk 0:03:53.2]} 15... Nf5 {[%clk 0:03:57.7]} 16. Qb3 {[%clk 0:03:47.4]}
16... Rf7 {[%clk 0:03:52.5]} 17. f4 {[%clk 0:03:31.6]} 17... Raf8 {[%clk
0:03:45.6]} 18. g3 {[%clk 0:03:26.7]} 18... exf4 {[%clk 0:03:17.3]} 19. Rxf4
{[%clk 0:03:19]} 19... Ne3 {[%clk 0:03:14.9]} 20. Rf2 {[%clk 0:03:00.2]} 20...
Rxf2 {[%clk 0:03:09.6]} 21. Nxf2 {[%clk 0:03:00.1]} 21... Qf5 {[%clk 0:02:40.8]}
22. Rf1 {[%clk 0:02:28.5]} 22... Nxf1 {[%clk 0:02:36.3]} 23. Qc2 {[%clk
0:02:25.5]} 23... Ne3 {[%clk 0:02:26.6]} 24. Qe2 {[%clk 0:02:23.6]} 24... Nd5
{[%clk 0:01:53.2]} 25. c4 {[%clk 0:02:17.7]} 25... Ne7 {[%clk 0:01:38.7]} 26.
Ne4 {[%clk 0:01:50.8]} 26... h6 {[%clk 0:01:30]} 27. b4 {[%clk 0:01:45.9]} 27...
Nc6 {[%clk 0:01:25.6]} 28. g4 {[%clk 0:01:28.3]} 28... Qf4 {[%clk 0:01:18.3]}
29. Nd2 {[%clk 0:00:52.5]} 29... Nd4 {[%clk 0:01:07.7]} 30. Qe1 {[%clk
0:00:39.9]} 30... Nf3+ {[%clk 0:01:02.4]} 31. Nxf3 {[%clk 0:00:39.2]} 31... Qxf3
{[%clk 0:01:01.7]} 32. Qxe6+ {[%clk 0:00:38.4]} 32... Kh8 {[%clk 0:01:01.1]} 33.
Qe1 {[%clk 0:00:31.4]} 33... Qxg4+ {[%clk 0:00:59.3]} 34. Kh1 {[%clk 0:00:30.7]}
34... Qf3+ {[%clk 0:00:56.8]} 35. Kg1 {[%clk 0:00:29.6]} 35... Qg4+ {[%clk
0:00:49.8]} 36. Kh1 {[%clk 0:00:28.2]} 36... Qf3+ {[%clk 0:00:35.1]} 37. Kg1
{[%clk 0:00:27.2]} 37... Rf6 {[%clk 0:00:28.5]} 38. Qe8+ {[%clk 0:00:25.3]}
38... Kh7 {[%clk 0:00:27.4]} 39. Qe4+ {[%clk 0:00:24.6]} 39... Rg6+ {[%clk
0:00:26.5]} 40. Qxg6+ {[%clk 0:00:22.3]} 40... Kxg6 {[%clk 0:00:25.9]} 41. h4
{[%clk 0:00:22.2]} 41... Qxd3 {[%clk 0:00:25.1]} 42. Kh2 {[%clk 0:00:22.1]}
42... Qxc4 {[%clk 0:00:24.4]} 43. Kg3 {[%clk 0:00:22]} 43... Qxb4 {[%clk
0:00:23.7]} 44. a3 {[%clk 0:00:21.9]} 44... Qxa3+ {[%clk 0:00:22.9]} 45. Kg4
{[%clk 0:00:21.8]} 45... Qc3 {[%clk 0:00:22.6]} 46. h5+ {[%clk 0:00:21.7]} 46...
Kh7 {[%clk 0:00:21.9]} 47. Kh4 {[%clk 0:00:21.6]} 47... a6 {[%clk 0:00:21.3]}
48. Kg4 {[%clk 0:00:21.5]} 48... a5 {[%clk 0:00:20.9]} 49. Kh4 {[%clk
0:00:21.4]} 49... a4 {[%clk 0:00:20.5]} 50. Kg4 {[%clk 0:00:21.3]} 50... a3
{[%clk 0:00:20.2]} 51. Kh4 {[%clk 0:00:21.2]} 51... a2 {[%clk 0:00:19.8]} 52.
Kg4 {[%clk 0:00:21.1]} 52... a1=Q {[%clk 0:00:18.8]} 53. Kf5 {[%clk 0:00:21]}
53... Qa6 {[%clk 0:00:17.3]} 54. Ke4 {[%clk 0:00:20.3]} 54... Qc5 {[%clk
0:00:16.5]} 55. Kf3 {[%clk 0:00:18.8]} 55... Qa4 {[%clk 0:00:16]} 56. Ke2 {[%clk
0:00:18.7]} 56... Qc3 {[%clk 0:00:15.4]} 57. Kf1 {[%clk 0:00:17.8]} 57... Qa2
{[%clk 0:00:15]} 58. Kg1 {[%clk 0:00:17]} 58... Qc1# {[%clk 0:00:14.6]} 0-1